Cogmind - Beta 16 @@@ ROGUE MODE // 2025.11.02 @ 18:05:03 Player: xgames Result: Destroyed by D-53 Grenadier with Mini Grenade Launcher Performance ------------- Evolutions (0) 0 Regions Visited (2) 400 Robots Destroyed (21) 105 Value Destroyed (420) 420 Prototype IDs (0) 0 Alien Tech Used (0) 0 Bonus (0) 0 TOTAL SCORE: 925 Bonus ------- None Cogmind --------- Core Integrity 0/250 Matter 230/300 Energy 100/100 System Corruption 2% Temperature Cool (0) Movement Core (750) Ox14 Location -10/Mines Parts ------- > --- POWER (1) -------- (None) > --- PROPULSION (2) --- (None) > --- UTILITY (2) ------ High-capacity Storage Unit Targeting Computer > --- WEAPON (2) ------- Grenade Launcher > --- INVENTORY (20) --- Light Ion Engine Wheel Armored Wheel Armored Wheel Armored Wheel Armored Wheel Heat Sink Improved Heat Sink Small Storage Unit Structural Scanner Structural Scanner Improved Terrain Scanner Improved Terrain Scanner Hacking Suite Small Laser Small Laser Beam Cannon Mining Laser Peak State ------------ > --- POWER ------------ Light Ion Engine > --- PROPULSION ------- Light Treads Wheel > --- UTILITY ---------- High-capacity Storage Unit Targeting Computer > --- WEAPON ----------- Assault Rifle Light Assault Rifle > --- INVENTORY -------- Light Ion Engine Wheel Armored Wheel Armored Wheel Armored Wheel Armored Wheel Heat Sink Improved Heat Sink Small Storage Unit Structural Scanner Structural Scanner Improved Terrain Scanner Improved Terrain Scanner Hacking Suite Small Laser Small Laser Grenade Launcher Mining Laser [Rating: 10] Favorites ----------- Power Light Ion Engine Engine Light Ion Engine Propulsion Wheel Treads Light Treads Wheel Wheel Utility High-capacity Storage Unit Device Seismic Detector Storage High-capacity Storage Unit Processor Targeting Computer Weapon Light Assault Rifle Energy Gun Small Laser Ballistic Gun Light Assault Rifle Launcher Grenade Launcher Build | -11 -10 -10 ------- Run | Yrd Mat Min Slots Evolved . | . . . Power . | . . . Propulsion . | . . . Utility . | . . . Weapon . | . . . Parts Attached 18 | 8 9 1 Power 2 | 1 1 . Engine 2 | 1 1 . Core . | . . . Reactor . | . . . Propulsion 4 | 2 2 . Treads 2 | 1 1 . Leg . | . . . Wheel 2 | 1 1 . Hover . | . . . Flight . | . . . Utility 5 | 3 2 . Device 2 | 2 . . Storage 2 | 1 1 . Processor 1 | . 1 . Hackware . | . . . Protection . | . . . Artifact . | . . . Weapon 7 | 2 4 1 Energy Gun 3 | 2 1 . Energy Cannon . | . . . Ballistic Gun 2 | . 2 . Ballistic Cannon . | . . . Launcher 2 | . 1 1 Special Weapon . | . . . Impact Weapon . | . . . Slashing Weapon . | . . . Piercing Weapon . | . . . Special Melee Weapon . | . . . Unidentified Prototypes . | . . . Parts Lost 10 | . 4 6 Power 2 | . 1 1 Propulsion 4 | . 2 2 Utility 1 | . 1 . Weapon 3 | . . 3 Highest Loss Streak 6 | . 2 6 To Critical Strikes . | . . . Average Backups 12 | 5 12 18 Power 1 | . 1 1 Propulsion 3 | 2 3 5 Utility 4 | . 4 8 Weapon 2 | 1 2 4 Tool/Special . | . . . Unused Backups 17 | 3 1 13 Power 2 | 1 . 1 Propulsion 8 | 2 1 5 Utility 6 | . . 6 Weapon 1 | . . 1 Tool/Special . | . . . Average Slot Usage (%) 97 | . 96 98 Engine 13 | . 13 14 Treads 13 | . 13 14 Wheel 13 | . 13 12 Device 4 | . 4 . Storage 14 | . 14 14 Processor 7 | . 6 14 Energy Gun 3 | . 4 . Ballistic Gun 23 | . 23 26 Peak Build Rating 10 | 9 10 10 Average Rating 8 | 5 8 9 On Entrance 6 | . 8 10 Avg Prop Armor Cover (%) 11 | 12 11 12 Naked Turns . | . . . Heaviest Build 47 | 12 47 46 Greatest Support 20 | 20 20 10 Greatest Overweight (x) 4 | 1 4 4 Average Overweight (x) 3 | . 3 4 Largest Inventory Capacity 20 | 8 20 20 Average Capacity 17 | 7 18 20 Most Carried 20 | 8 18 20 Average Carried 12 | 5 12 18 Final Capacity 20 | 8 20 20 Final Carried 18 | 8 18 18 Class Distribution -------------------- 100% | Mutant Dominant Class ---------------- Mutant | -10/Materials Mutant | -10/Mines Resources | -11 -10 -10 ----------- Run | Yrd Mat Min Matter Collected 618 | 280 338 . Remotely . | . . . Salvage Created 601 | 118 483 . Parts 42 | 10 32 . Haulers Intercepted . | . . . Recyclers Shooed 2 | . 2 . Parts Field Recycled . | . . . Retrieved Matter . | . . . Parts Self-Destructed . | . . . Prevented . | . . . Parts Restored . | . . . Kills | -11 -10 -10 ------- Run | Yrd Mat Min Combat Hostiles Destroyed 14 | . 14 . Guns 10 | . 10 . AOE 4 | . 4 . Classes Destroyed 6 | 2 4 . Tunneler 3 | 3 . . Recycler 2 | 1 1 . Operator 1 | . 1 . Watcher 1 | . 1 . Swarmer 6 | . 6 . Grunt 8 | . 8 . Best Kill Streak 5 | 4 5 . Combat Bots Only 5 | . 5 . Max Kills in Single Turn 2 | 1 2 . Gunslinging . | . . . Exploded 2 | . 2 . Melee . | . . . Uniques/NPCs Destroyed . | . . . Combat | -11 -10 -10 -------- Run | Yrd Mat Min Hostile Shots Fired 76 | . 63 13 Missed 14 | . 12 2 Hits 62 | . 51 11 Projectile 62 | . 51 11 AOE 13 | . . 13 Damage Taken 1123 | . 622 501 Core 254 | . 106 148 Absorbed by Shields . | . . . Core Remaining (%) 100 | 100 . . Volleys Fired 64 | 5 56 3 Largest 2 | 2 2 2 Hottest 90 | 90 90 53 Shots Fired 120 | 10 104 6 Gun 110 | 10 97 3 Cannon . | . . . Launcher 10 | . 7 3 Special . | . . . Kinetic 73 | . 70 3 Thermal 37 | 10 27 . Explosive 10 | . 7 3 Electromagnetic . | . . . Robot Hit Streak 13 | 7 13 2 Robot Miss Streak 3 | . 3 3 Penetration Max . | . . . Secondary Targets . | . . . Shots Hit Robots 75 | 7 66 2 Core Hits 46 | 5 34 7 Critical Kills . | . . . Critical Parts Destroyed . | . . . Critical Strikes . | . . . Melee Attacks . | . . . Impact . | . . . Slashing . | . . . Piercing . | . . . Sneak Attacks . | . . . Combat Hostiles . | . . . Follow-up Attacks . | . . . Damage Inflicted 1156 | 86 1002 68 Guns 788 | 86 693 9 Cannons . | . . . Explosions 364 | . 305 59 Melee . | . . . Ramming 4 | . 4 . Kinetic 494 | . 485 9 Thermal 294 | 86 208 . Explosive 364 | . 305 59 Electromagnetic . | . . . Impact . | . . . Slashing . | . . . Piercing . | . . . Highest Corruption 2 | . 2 2 Average Corruption 1 | . 1 2 Corruption Purged . | . . . Corruption Blocked . | . . . Effects 5 | . 5 . Message Errors 1 | . 1 . Matter Fused 1 | . 1 . Heat Flow Errors 1 | . 1 . Energy Discharges 1 | . 1 . Misfires 1 | . 1 . Overload Shots . | . . . Overflow Damage 4 | . 4 . Projectiles . | . . . Explosions 4 | . 4 . Melee . | . . . Knockbacks . | . . . Impact . | . . . Kinetic . | . . . Secondary . | . . . Self-Inflicted Damage 71 | . 47 24 Shots 4 | . 3 1 Rammed 1 | . 1 . Targets Rammed 1 | . 1 . Kicked . | . . . Crushed . | . . . Highest Temperature 159 | 60 159 12 Average Temperature 32 | 24 35 9 Received Heat Transfer 252 | . 252 . Siege Activations . | . . . Martial Activations . | . . . Shielding Activations . | . . . Robots Disrupted . | . . . Combat Hostiles . | . . . Robots Corrupted . | . . . Combat Hostiles . | . . . Parts Fried . | . . . Impact Corruptions . | . . . Robots Melted . | . . . Combat Hostiles . | . . . Parts Melted 1 | 1 . . Heat Transferred 710 | 235 475 . Parts Sabotaged . | . . . Parts Stolen . | . . . Parts Stripped . | . . . Power Chain Reactions . | . . . Alert | -11 -10 -10 ------- Run | Yrd Mat Min Maximum Alert Level . | . . . Low Security (%) 100 | 100 100 100 Level 1 . | . . . Level 2 . | . . . Level 3 . | . . . Level 4 . | . . . Level 5 . | . . . High Security . | . . . Max Security . | . . . Peak Influence 159 | 15 159 10 Initial . | . . . Average 56 | 2 67 . Influence Increases 489 | 20 455 14 Destroy 0b10 Robot/C 280 | . 280 . Destroy 0b10 Robot/NC 35 | 20 15 . Destroy Leader 72 | . 72 . Successful Hack 15 | . 15 . Disable Machine 15 | . 15 . Destroy Structure 57 | . 43 14 Partial Spotted 15 | . 15 . Influence Decreases 489 | 20 453 16 Entered New Map 2 | . . 2 Time Decay 428 | 20 408 . Lost Part 54 | . 40 14 Purge Threat 5 | . 5 . Squads Dispatched 4 | . 4 . Investigation 2 | . 2 . Extermination . | . . . Reinforcement 2 | . 2 . Assault . | . . . Garrison . | . . . Intercept . | . . . Searches Triggered . | . . . Construction Impeded . | . . . Haulers Reinforced . | . . . Active Scanning Responses . | . . . Cargo Convoy Interrupts . | . . . Stealth | -11 -10 -10 --------- Run | Yrd Mat Min Distress Signals 3 | . 3 . Communications Jammed . | . . . Distress Signals . | . . . Times Spotted 32 | . 30 2 Peak Tracking Total 8 | . 8 2 Tactical Retreats . | . . . Traps | -11 -10 -10 ------- Run | Yrd Mat Min Traps Triggered 4 | . 4 . Indirectly . | . . . Trap Hack Attempts . | . . . Triggered . | . . . Disarmed 6 | . 6 . Reprogrammed . | . . . Reused . | . . . Traps Extracted . | . . . Installed . | . . . Triggered . | . . . Machines | -11 -10 -10 ---------- Run | Yrd Mat Min Machines Disabled 2 | . 2 . Max in Single Turn 1 | . 1 . Machines Repaired . | . . . Machines Dismantled . | . . . Machines Sabotaged . | . . . Overloaded Fab Kills . | . . . Hacking | -11 -10 -10 --------- Run | Yrd Mat Min Machines Accessed 4 | . 4 . Terminals 3 | . 3 . Fabricators . | . . . Repair Stations . | . . . Recycling Units 1 | . 1 . Scanalyzers . | . . . Garrison Access . | . . . Total Hacks 14 | . 14 . Successful 7 | . 7 . Failed 7 | . 7 . Catastrophic 1 | . 1 . Database Lockouts . | . . . Manual 8 | . 8 . Terminals 11 | . 11 . Fabricators . | . . . Repair Stations . | . . . Recycling Units 3 | . 3 . Scanalyzers . | . . . Garrison Access . | . . . Terminal Hacks 2 | . 2 . Unreport Threat 1 | . 1 . Disarm Traps 1 | . 1 . Fabricator Hacks . | . . . Repair Station Hacks . | . . . Recycling Unit Hacks 2 | . 2 . Process 1 | . 1 . Retrieve Components 1 | . 1 . Scanalyzer . | . . . Garrison Access Hacks . | . . . Unauthorized Hacks 3 | . 3 . Terminals 3 | . 3 . Assimilate 1 | . 1 . Botnet 2 | . 2 . Fabricators . | . . . Repair Stations . | . . . Recycling Units . | . . . Scanalyzers . | . . . Garrison Access . | . . . Data Cores Recovered . | . . . Used . | . . . Hacking Detections 4 | . 4 . Full Trace Events 3 | . 3 . Feedback Events . | . . . Feedback Blocked . | . . . Robot Schematics Acquired . | . . . Robots Built . | . . . Authchips . | . . . Time . | . . . Total Robot Build Rating . | . . . Part Schematics Acquired . | . . . Parts Built . | . . . Authchips . | . . . Time . | . . . Total Part Build Rating . | . . . Part Studies Acquired . | . . . Parts Repaired . | . . . Time . | . . . Parts Recycled . | . . . Recycled Matter 142 | . 142 . Retrieved Matter . | . . . Retrieved Components 9 | . 9 . Parts Scanalyzed . | . . . Part Schematics Acquired . | . . . Parts Damaged . | . . . Bothacking | -11 -10 -10 ------------ Run | Yrd Mat Min Used RIF Installer . | . . . Robots Hacked . | . . . Non-combat . | . . . Combat . | . . . Robot Hacks Applied . | . . . Relay Couplers Released . | . . . Fabnet Peak Effective % . | . . . Robots Rewired . | . . . Allies Hacked . | . . . Hacks Repelled . | . . . Allies | -11 -10 -10 -------- Run | Yrd Mat Min Total Allies . | . . . Largest Group . | . . . Highest-Rated Group . | . . . Highest-Rated Ally . | . . . Total Orders . | . . . Ally Attacks . | . . . Total Damage . | . . . Kills . | . . . Allies Corrupted . | . . . Allies Melted . | . . . Intel | -11 -10 -10 ------- Run | Yrd Mat Min Active Infowar (turns) 408 | 40 368 . Terrain 1 | 1 . . Seismic 407 | 39 368 . Robot Analysis Total . | . . . Derelict Logs Recovered . | . . . Drone Launches . | . . . Drone Recoveries . | . . . Exploration | -11 -10 -10 ------------- Run | Yrd Mat Min Turns Passed 1346 | 127 1120 99 Spaces Moved 738 | 89 587 62 Core 9 | 9 . . Treads 67 | 8 59 . Legs . | . . . Wheels 662 | 72 528 62 Hover . | . . . Flight . | . . . Fastest Speed 50 | 50 95 140 Average Speed 143 | 95 150 140 Slowest Speed 320 | 160 320 140 Overloaded Moves . | . . . Propulsion Burnouts . | . . . Robots Hopped . | . . . Potential Cave-ins . | . . . Cave-ins Triggered . | . . . Exploration Rate (%) 31 | 4 72 19 Regions Visited 2 Branch Regions 1 Pre-discovered Areas . | . . . Known Exits Taken . | . . . Unknown Exits Taken 2 | 1 1 . Scrap Searched . | . . . Spaces Dug . | . . . Terrain Destroyed 72 | . 47 25 Melee . | . . . Projectile . | . . . AOE 72 | . 47 25 Terrain Rammed . | . . . Walls Destroyed . | . . . Machines Disabled . | . . . Actions | -11 -10 -10 --------- Run | Yrd Mat Min Total 912 | 122 721 69 Wait 40 | . 40 . Move 736 | 88 586 62 Hop . | . . . Pick Up 36 | 18 16 2 Fast Attach . | . . . Attach 14 | 7 5 2 Detach . | . . . Swap 16 | 1 15 . Drop 5 | 3 2 . Fire 64 | 5 56 3 Melee . | . . . Ram 1 | . 1 . Kick . | . . . Crush . | . . . Escape Stasis . | . . . Rewire . | . . . Trap . | . . . Miscellaneous . | . . . Route ------- -11/Scrapyard -10/Materials (discovered 4 exits: [*Mat x2] / [*Min] / [*Sub]) -10/Mines History --------- Turn | Location | Event 6 | -11/Scrapyard | Discovered new exit (range 15) 128 | -11/Scrapyard | Entered Materials 265 | -10/Materials | Discovered new exit (range 11) 306 | -10/Materials | Build established: Mutant 842 | -10/Materials | Discovered new exit (range 14) 949 | -10/Materials | Discovered new exit (range 14) 966 | -10/Materials | Discovered new exit (range 15) 1248 | -10/Materials | Entered Mines 1283 | -10/Mines | Received a Rocket Launcher from a helpful Derelict 1294 | -10/Mines | Assembled infested the area 1335 | -10/Mines | Core integrity fell below 50% 1346 | -10/Mines | Core integrity fell below 20% 1347 | -10/Mines | Destroyed by D-53 Grenadier with Mini Grenade Launcher Last Messages --------------- 01283_ CT-Y78(g): "Would you like a rocket launcher? I know I would if I were you, so I'm going to lend you mine." 01283_ CT-Y78(g) slips back into the shadows. 01285_ Acquired Rocket Launcher. 01294_ ALERT: Infestation in the mines, dispatching Demolisher response squad. 01300_ Acquired Beam Cannon. 01334_ C-45 Heavy ARC bursts open, deploying its payload. 01334_ D-53 Grenadier unfolds itself. 01335_ T-07 Excavator destroyed. 01335_ Assault Rifle destroyed. 01337_ Wheel destroyed. 01338_ The unstable cave ceiling collapses. 01341_ Lgt. Treads destroyed. 01341_ Rocket Launcher destroyed. 01343_ The unstable cave ceiling collapses. 01343_ U-05 Engineer lays Concrete. 01345_ Lgt. Ion Engine destroyed. 01346_ U-05 Engineer lays Concrete. 01347_ Lgt. Assault Rifle destroyed. Map ----- +----------------------------------------------------+ | ?????????????????????????????????????????????????? | | ?????????????????????????????????????????????????? | | ?????????????????????????????????????????????????? | | ?????????????????????????????????????????????????? | | ?????????????????????????????????????????????????? | | ?????????????????????????????????????????????????? | | ?????????????????????????????????????????????????? | | ??????????????????????????????###????????????????? | | ?????????????????????????????? ????????????????? | | ?????????????????????????????? ????????????????? | | ?????????????????????????????? ????????????????? | | ?????????????????????????????? #????????????????? | | ?????????????????????????????? #????????????????? | | ?????????????????????????????# #????????????????? | | ?????????????????????????????# #????????????????? | | ?????????????????????????????# ##???????????????? | | ?????????????????????????????# ????????????????? | | ????????????????????????????? u##???????????????? | | ????????????????????????##### u #???????????????? | | ??????????????????????### ##??????????????? | | ?????????????????????## #??????????????? | | ?????????????????????# % #??????????????? | | ????????????????????## d d #??????????????? | | ??????????????????### #??????????????? | | ??????????????????# #??????????????? | | ??????????????##### @ #???????????????? | | ??????????????# ## !????????? | | ??????????????# ### #??????????????????? | | ??????????????????# ##??????????????????? | | ??????????????????# #### #???????????????? | | ??????????????????### #???????????????? | | ??????????????????# #???????????????? | | ??????????????????# # #######???????????????? | | ???????????????#### # ##?####????????????????? | | ??????????????## ## ##?## ##???????????????? | | ???????????# ## #####??# ##??????????????? | | ???????????# ######## ##?????????????? | | ???????????#### #?# #?????????????? | | ??????????????## ### #??# ##???##???????? | | ???????????????## #?# #??# #?## #???????? | | ????????????????## ##?# #### #?# #???????? | | ?????????????????# ##??# #### #???????? | | ?????????????????# ##???####### #?# ########? | | ????????????????# ???????????### #?# ?? | | ????????????????# ?????????????# ### #??????? | | ????????????????# #?????????????# #??????? | | ????????????????###??????????????##### #??????? | | ?????????????????????????????????????## ##??????? | | ???????????????????????????????????????###???????? | | ?????????????????????????????????????????????????? | +----------------------------------------------------+ Best States ------------- Heat Dissipation 25 Energy Generation 10 Energy Capacity 125 Matter Stores 300 Matter Capacity 300 Sight Range 16 Terrain Scan Density 10 Evasion (%) 50 Targeting Accuracy 5 Recoil Reduction 1 Item Schematics ----------------- None Robot Schematics ------------------ None Fabricated ------------ Nothing Repaired ---------- Nothing Studied --------- None Alien Tech Used ----------------- None Achievements -------------- root@ Challenges ------------ None Game ------ Seed CombatGravitonPod Manual? 0 Play Time 00:14:30 Cumulative 12.9 hours Start 2025.11.02 @ 17:51:29 End 2025.11.02 @ 18:05:03 Sessions 1 Manual Loads 0 Difficulty Rogue Special Mode None Game No. 26 Rogue 26 Adventurer 0 Explorer 0 Win Type - Total 0 Types 0/0/0/0/0/0/0/0/0/0 Lore% 9 Gallery% 16 Achievement% 12 Wizard Run 0 Options --------- Layout 1 ASCII 0 Keyboard 0 Movement Mouse Keybinds 0 Fullscreen 1 Font 24/Smallcaps Map View 76x35 Zoom Use 0% Tactical HUD 1 Map Filters NONE Filters NONE Steam 1 RUN: c1c5313c-df1b-4d36-9c62-cd58f644ab41